[Event "Early-Titled-Tuesday-Blitz-December-26-2023"]
[Site "Chess.com"]
[Date "2023.12.26"]
[Round "10"]
[White "slidingknight2775"]
[Black "wonderfultime"]
[Result "0-1"]
[WhiteElo "2690"]
[BlackElo "3001"]
[TimeControl "180+1"]
[EndTime "9:55:27 PST"]
[Termination "wonderfultime won by resignation"]

1. Nf3 {[%clk 0:03:00.9]} 1... d5 {[%clk 0:02:55.8]} 2. g3 {[%clk 0:03:01.2]}
2... Nd7 {[%clk 0:02:56.4]} 3. d4 {[%clk 0:03:00.9]} 3... Nb6 {[%clk 0:02:56.8]}
4. Bg2 {[%clk 0:03:01.5]} 4... Bf5 {[%clk 0:02:56.6]} 5. O-O {[%clk 0:03:02.1]}
5... e6 {[%clk 0:02:57.2]} 6. b3 {[%clk 0:03:02.8]} 6... Nf6 {[%clk 0:02:57.1]}
7. c4 {[%clk 0:03:03.2]} 7... c6 {[%clk 0:02:57.2]} 8. Nbd2 {[%clk 0:03:03.4]}
8... h6 {[%clk 0:02:57.6]} 9. Bb2 {[%clk 0:03:01.9]} 9... Be7 {[%clk 0:02:58.2]}
10. a4 {[%clk 0:03:02]} 10... a5 {[%clk 0:02:57.2]} 11. Qc1 {[%clk 0:03:02.5]}
11... O-O {[%clk 0:02:56.7]} 12. Ba3 {[%clk 0:03:01.7]} 12... Nbd7 {[%clk
0:02:57.4]} 13. Bxe7 {[%clk 0:02:58.7]} 13... Qxe7 {[%clk 0:02:58.3]} 14. Qc3
{[%clk 0:02:59.1]} 14... Rfc8 {[%clk 0:02:44.8]} 15. Ne5 {[%clk 0:02:47.8]}
15... Nxe5 {[%clk 0:02:40.9]} 16. dxe5 {[%clk 0:02:48.7]} 16... Nd7 {[%clk
0:02:41.6]} 17. e4 {[%clk 0:02:46.9]} 17... dxe4 {[%clk 0:02:41.8]} 18. Nxe4
{[%clk 0:02:47.5]} 18... Bxe4 {[%clk 0:02:42.1]} 19. Bxe4 {[%clk 0:02:48.4]}
19... Qc5 {[%clk 0:02:42.8]} 20. Rfe1 {[%clk 0:02:39.8]} 20... Nxe5 {[%clk
0:02:42.5]} 21. Bc2 {[%clk 0:02:32.8]} 21... Nd7 {[%clk 0:02:40.7]} 22. Rad1
{[%clk 0:02:28.7]} 22... Nf6 {[%clk 0:02:41]} 23. Re5 {[%clk 0:02:28.3]} 23...
Qb4 {[%clk 0:02:37.9]} 24. Qxb4 {[%clk 0:02:17.1]} 24... axb4 {[%clk 0:02:38.8]}
25. a5 {[%clk 0:01:31.7]} 25... Kf8 {[%clk 0:02:38.9]} 26. Ra1 {[%clk
0:01:30.5]} 26... Nd7 {[%clk 0:02:15.1]} 27. Ree1 {[%clk 0:01:25.3]} 27... Nc5
{[%clk 0:02:09.5]} 28. Kg2 {[%clk 0:00:57]} 28... Rd8 {[%clk 0:02:08.8]} 29. Re5
{[%clk 0:00:48.7]} 29... Na6 {[%clk 0:02:09]} 30. Ra4 {[%clk 0:00:43]} 30... Rd2
{[%clk 0:02:07.3]} 31. Bb1 {[%clk 0:00:36.4]} 31... Rb2 {[%clk 0:02:07.1]} 32.
Bd3 {[%clk 0:00:32.4]} 32... Rxb3 {[%clk 0:02:07.5]} 33. Bf1 {[%clk 0:00:32]}
33... Rb2 {[%clk 0:02:03.1]} 34. c5 {[%clk 0:00:29.8]} 34... Rd8 {[%clk
0:01:59.1]} 35. Re2 {[%clk 0:00:17.2]} 35... Rxe2 {[%clk 0:01:55.8]} 36. Bxe2
{[%clk 0:00:18.1]} 36... Rd4 {[%clk 0:01:56.3]} 37. Bxa6 {[%clk 0:00:16.1]}
37... bxa6 {[%clk 0:01:57.2]} 38. Kf3 {[%clk 0:00:16.3]} 38... Rc4 {[%clk
0:01:56.4]} 39. Ke3 {[%clk 0:00:15.9]} 39... Ke7 {[%clk 0:01:55.3]} 40. Kd3
{[%clk 0:00:15.8]} 40... Rxc5 {[%clk 0:01:55.7]} 41. Rxb4 {[%clk 0:00:16.3]}
41... Rxa5 {[%clk 0:01:54.7]} 42. Rb7+ {[%clk 0:00:16.9]} 42... Kf6 {[%clk
0:01:54.2]} 43. Rc7 {[%clk 0:00:16.4]} 43... Ra2 {[%clk 0:01:54.5]} 44. Ke3
{[%clk 0:00:12.4]} 44... a5 {[%clk 0:01:52.6]} 45. Rxc6 {[%clk 0:00:12.7]} 45...
a4 {[%clk 0:01:53.1]} 46. Ra6 {[%clk 0:00:12.8]} 46... a3 {[%clk 0:01:53.5]} 47.
Kf3 {[%clk 0:00:12.6]} 47... g5 {[%clk 0:01:53]} 48. h3 {[%clk 0:00:11.6]} 48...
h5 {[%clk 0:01:53.4]} 49. Ra7 {[%clk 0:00:11.6]} 49... Ra1 {[%clk 0:01:52.5]}
50. Ra5 {[%clk 0:00:06.6]} 50... a2 {[%clk 0:01:52.6]} 51. Ra7 {[%clk
0:00:07.2]} 51... Ke5 {[%clk 0:01:52.5]} 52. Ra8 {[%clk 0:00:06.1]} 52... f5
{[%clk 0:01:52.2]} 53. Ra5+ {[%clk 0:00:05.6]} 53... Kd4 {[%clk 0:01:52.5]} 54.
Kg2 {[%clk 0:00:06.5]} 54... e5 {[%clk 0:01:52.2]} 55. Ra8 {[%clk 0:00:06.6]}
55... e4 {[%clk 0:01:51.5]} 56. Rd8+ {[%clk 0:00:07.2]} 56... Kc5 {[%clk
0:01:51.4]} 57. Rc8+ {[%clk 0:00:07.7]} 57... Kd6 {[%clk 0:01:51.1]} 58. Rd8+
{[%clk 0:00:07.4]} 58... Kc7 {[%clk 0:01:51]} 59. Ra8 {[%clk 0:00:07.7]} 59...
f4 {[%clk 0:01:51.5]} 60. gxf4 {[%clk 0:00:07.2]} 60... gxf4 {[%clk 0:01:52.4]}
61. Ra4 {[%clk 0:00:07.1]} 61... e3 {[%clk 0:01:52.6]} 62. fxe3 {[%clk
0:00:07.1]} 62... fxe3 {[%clk 0:01:53.5]} 63. Re4 {[%clk 0:00:05.3]} 63... Re1
{[%clk 0:01:51.9]} 64. Rxe3 {[%clk 0:00:04.4]} 64... Rxe3 {[%clk 0:01:51.6]} 0-1

[Event "Early-Titled-Tuesday-Blitz-December-26-2023"]
[Site "Chess.com"]
[Date "2023.12.26"]
[Round "10"]
[White "Dewarfd"]
[Black "JAN2404"]
[Result "1-0"]
[WhiteElo "2082"]
[BlackElo "1939"]
[TimeControl "180+1"]
[EndTime "9:55:29 PST"]
[Termination "Dewarfd won on time"]

1. d4 {[%clk 0:02:59.6]} 1... Nf6 {[%clk 0:02:58.2]} 2. e3 {[%clk 0:02:59.4]}
2... d5 {[%clk 0:02:50]} 3. Nf3 {[%clk 0:02:58.2]} 3... Bg4 {[%clk 0:02:48.8]}
4. h3 {[%clk 0:02:58.3]} 4... Bh5 {[%clk 0:02:46.6]} 5. g4 {[%clk 0:02:57.6]}
5... Bg6 {[%clk 0:02:46.2]} 6. Ne5 {[%clk 0:02:57.8]} 6... e6 {[%clk 0:02:36.2]}
7. h4 {[%clk 0:02:57.6]} 7... h5 {[%clk 0:02:21.1]} 8. Nxg6 {[%clk 0:02:53.7]}
8... fxg6 {[%clk 0:02:20.1]} 9. g5 {[%clk 0:02:53.5]} 9... Ne4 {[%clk
0:02:18.3]} 10. Bd3 {[%clk 0:02:53.3]} 10... Nc6 {[%clk 0:02:05.6]} 11. c3
{[%clk 0:02:51.6]} 11... Bd6 {[%clk 0:02:03.2]} 12. Nd2 {[%clk 0:02:50.3]} 12...
e5 {[%clk 0:01:16.5]} 13. Nxe4 {[%clk 0:02:44.1]} 13... dxe4 {[%clk 0:01:16.1]}
14. Bxe4 {[%clk 0:02:45]} 14... Ne7 {[%clk 0:01:16.2]} 15. Qc2 {[%clk
0:02:25.3]} 15... O-O {[%clk 0:01:04.6]} 16. Bxg6 {[%clk 0:02:14.4]} 16... exd4
{[%clk 0:00:59.6]} 17. exd4 {[%clk 0:01:51.7]} 17... Nxg6 {[%clk 0:00:38.6]} 18.
Qxg6 {[%clk 0:01:50.6]} 18... Qe7+ {[%clk 0:00:38.7]} 19. Be3 {[%clk 0:01:50]}
19... Bf4 {[%clk 0:00:37.5]} 20. O-O-O {[%clk 0:01:24.9]} 20... Bxe3+ {[%clk
0:00:37.2]} 21. fxe3 {[%clk 0:01:25.8]} 21... Qxe3+ {[%clk 0:00:37.2]} 22. Kb1
{[%clk 0:01:26.2]} 22... Rae8 {[%clk 0:00:23.4]} 23. Qxh5 {[%clk 0:01:22.5]}
23... Rf2 {[%clk 0:00:20.2]} 24. g6 {[%clk 0:01:11.2]} 24... Qe4+ {[%clk
0:00:14.1]} 25. Ka1 {[%clk 0:01:10.9]} 25... Qc2 {[%clk 0:00:08.6]} 26. Qh7+
{[%clk 0:01:04.6]} 26... Kf8 {[%clk 0:00:09.2]} 27. Qh8+ {[%clk 0:01:03.8]}
27... Ke7 {[%clk 0:00:09.6]} 28. Qxg7+ {[%clk 0:01:01.1]} 28... Kd8 {[%clk
0:00:08.4]} 29. Rb1 {[%clk 0:01:00.2]} 29... Re6 {[%clk 0:00:04.1]} 30. Qg8+
{[%clk 0:00:57.3]} 30... Kd7 {[%clk 0:00:03.5]} 31. g7 {[%clk 0:00:51.9]} 31...
Ra6 {[%clk 0:00:01.9]} 32. Qd5+ {[%clk 0:00:48.5]} 32... Rd6 {[%clk 0:00:01.7]}
33. g8=Q {[%clk 0:00:45.9]} 1-0

[Event "Early-Titled-Tuesday-Blitz-December-26-2023"]
[Site "Chess.com"]
[Date "2023.12.26"]
[Round "10"]
[White "sokidze"]
[Black "Iskusnyh"]
[Result "0-1"]
[WhiteElo "2757"]
[BlackElo "2643"]
[TimeControl "180+1"]
[EndTime "9:55:41 PST"]
[Termination "Iskusnyh won on time"]

1. d4 {[%clk 0:03:00.1]} 1... d5 {[%clk 0:02:59.9]} 2. Nc3 {[%clk 0:03:00.7]}
2... Nf6 {[%clk 0:02:56.7]} 3. Bf4 {[%clk 0:03:00.6]} 3... c5 {[%clk 0:02:55.8]}
4. e4 {[%clk 0:03:00.5]} 4... Nxe4 {[%clk 0:02:54.4]} 5. Nxe4 {[%clk 0:03:00.6]}
5... dxe4 {[%clk 0:02:55.3]} 6. dxc5 {[%clk 0:03:01.3]} 6... Qa5+ {[%clk
0:02:53.3]} 7. c3 {[%clk 0:03:01.6]} 7... Qxc5 {[%clk 0:02:52.8]} 8. Qa4+ {[%clk
0:03:02.2]} 8... Nc6 {[%clk 0:02:44]} 9. Qxe4 {[%clk 0:03:02.8]} 9... g6 {[%clk
0:02:42.7]} 10. Nf3 {[%clk 0:03:02.1]} 10... Bg7 {[%clk 0:02:42.2]} 11. Rd1
{[%clk 0:03:01.9]} 11... O-O {[%clk 0:02:39.6]} 12. Be3 {[%clk 0:02:59.3]} 12...
Qa5 {[%clk 0:02:35]} 13. Bc4 {[%clk 0:02:57.3]} 13... Bf5 {[%clk 0:02:17.4]} 14.
Qh4 {[%clk 0:02:56.3]} 14... Rac8 {[%clk 0:01:48]} 15. Rd5 {[%clk 0:01:36.9]}
15... Bxc3+ {[%clk 0:01:22.8]} 16. bxc3 {[%clk 0:01:31.4]} 16... Qxc3+ {[%clk
0:01:22.1]} 17. Bd2 {[%clk 0:01:08.2]} 17... Qa1+ {[%clk 0:00:33.1]} 18. Ke2
{[%clk 0:01:07.6]} 18... Qxh1 {[%clk 0:00:32.5]} 19. Ng5 {[%clk 0:00:31.8]}
19... h5 {[%clk 0:00:20.8]} 20. Rxf5 {[%clk 0:00:13.9]} 20... e6 {[%clk
0:00:18.5]} 21. Rf4 {[%clk 0:00:04.1]} 21... Ne5 {[%clk 0:00:15.5]} 22. Bb3
{[%clk 0:00:01.6]} 22... Rfd8 {[%clk 0:00:14.7]} 23. Ne4 {[%clk 0:00:01.2]}
23... Nd3 {[%clk 0:00:12.2]} 0-1

[Event "Early-Titled-Tuesday-Blitz-December-26-2023"]
[Site "Chess.com"]
[Date "2023.12.26"]
[Round "10"]
[White "MetiForce"]
[Black "GeorgMeier"]
[Result "0-1"]
[WhiteElo "2884"]
[BlackElo "3044"]
[TimeControl "180+1"]
[EndTime "9:55:47 PST"]
[Termination "GeorgMeier won on time"]

1. b3 {[%clk 0:00:15.6]} 1... d5 {[%clk 0:02:59.1]} 2. Bb2 {[%clk 0:00:16.5]}
2... Nf6 {[%clk 0:02:58.7]} 3. e3 {[%clk 0:00:17.2]} 3... c5 {[%clk 0:02:58]} 4.
f4 {[%clk 0:00:17.9]} 4... Nc6 {[%clk 0:02:57.5]} 5. Nf3 {[%clk 0:00:18.6]} 5...
Bf5 {[%clk 0:02:55.3]} 6. Bb5 {[%clk 0:00:19]} 6... Rc8 {[%clk 0:02:54.5]} 7.
O-O {[%clk 0:00:19.3]} 7... a6 {[%clk 0:02:52.3]} 8. Bxc6+ {[%clk 0:00:19.4]}
8... Rxc6 {[%clk 0:02:52.5]} 9. d3 {[%clk 0:00:20.2]} 9... Rc8 {[%clk 0:02:50]}
10. Nbd2 {[%clk 0:00:20.8]} 10... e6 {[%clk 0:02:48.1]} 11. Qe1 {[%clk
0:00:21.3]} 11... Be7 {[%clk 0:02:43.7]} 12. e4 {[%clk 0:00:21.7]} 12... Bg6
{[%clk 0:02:38.7]} 13. Ne5 {[%clk 0:00:22.3]} 13... c4 {[%clk 0:02:15.1]} 14.
bxc4 {[%clk 0:00:17.3]} 14... Qb6+ {[%clk 0:02:12.6]} 15. Kh1 {[%clk 0:00:17.5]}
15... Qxb2 {[%clk 0:02:12.5]} 16. Rb1 {[%clk 0:00:14.9]} 16... Qxc2 {[%clk
0:02:09.9]} 17. f5 {[%clk 0:00:12.6]} 17... O-O {[%clk 0:01:51.7]} 18. fxg6
{[%clk 0:00:12.6]} 18... hxg6 {[%clk 0:01:52.4]} 19. Rxb7 {[%clk 0:00:13]} 19...
Bd6 {[%clk 0:01:52.6]} 20. exd5 {[%clk 0:00:12.1]} 20... Bxe5 {[%clk 0:01:48.1]}
21. dxe6 {[%clk 0:00:12.4]} 21... Rc7 {[%clk 0:01:12.3]} 22. exf7+ {[%clk
0:00:09.6]} 22... Rcxf7 {[%clk 0:01:08.9]} 23. Rxf7 {[%clk 0:00:09]} 23... Rxf7
{[%clk 0:01:08.6]} 24. Nf3 {[%clk 0:00:09.9]} 24... Bf4 {[%clk 0:00:40.7]} 25.
Qe6 {[%clk 0:00:07]} 25... Qxd3 {[%clk 0:00:36.6]} 26. Re1 {[%clk 0:00:06.4]}
26... Qf5 {[%clk 0:00:33.5]} 27. Qxa6 {[%clk 0:00:06.3]} 27... Rc7 {[%clk
0:00:21.9]} 28. h3 {[%clk 0:00:04.7]} 28... Qc8 {[%clk 0:00:20.9]} 29. Qb5
{[%clk 0:00:01.5]} 29... Rc5 {[%clk 0:00:19.7]} 30. Qb3 {[%clk 0:00:01.8]} 30...
Kh7 {[%clk 0:00:18.6]} 31. Nd4 {[%clk 0:00:02.3]} 31... Rxc4 {[%clk 0:00:17.3]}
32. Ne6 {[%clk 0:00:03]} 32... Rc1 {[%clk 0:00:15.7]} 0-1

[Event "Early-Titled-Tuesday-Blitz-December-26-2023"]
[Site "Chess.com"]
[Date "2023.12.26"]
[Round "10"]
[White "MightyGMpretender"]
[Black "Zhigalko_Sergei"]
[Result "0-1"]
[WhiteElo "2759"]
[BlackElo "2909"]
[TimeControl "180+1"]
[EndTime "9:55:47 PST"]
[Termination "Zhigalko_Sergei won by resignation"]

1. Nf3 {[%clk 0:03:00.9]} 1... d5 {[%clk 0:03:00.2]} 2. g3 {[%clk 0:03:01.8]}
2... c6 {[%clk 0:02:59.1]} 3. Bg2 {[%clk 0:03:02.1]} 3... Bg4 {[%clk 0:02:59.6]}
4. h3 {[%clk 0:03:02.8]} 4... Bh5 {[%clk 0:02:59.8]} 5. O-O {[%clk 0:03:03.3]}
5... e6 {[%clk 0:03:00.3]} 6. c4 {[%clk 0:03:03]} 6... Nf6 {[%clk 0:03:00]} 7.
Qb3 {[%clk 0:02:59.1]} 7... Qb6 {[%clk 0:02:59.5]} 8. d3 {[%clk 0:02:59.7]} 8...
Nbd7 {[%clk 0:02:58.2]} 9. Be3 {[%clk 0:03:00.3]} 9... Qa6 {[%clk 0:02:57.5]}
10. cxd5 {[%clk 0:02:53.3]} 10... Nxd5 {[%clk 0:02:38.1]} 11. Bd2 {[%clk
0:02:52.9]} 11... Be7 {[%clk 0:02:36]} 12. Nc3 {[%clk 0:02:53]} 12... O-O {[%clk
0:02:34.7]} 13. Rfc1 {[%clk 0:02:52.2]} 13... Rfd8 {[%clk 0:02:32.2]} 14. a3
{[%clk 0:02:51.9]} 14... h6 {[%clk 0:02:27.8]} 15. Rab1 {[%clk 0:02:51.7]} 15...
Rac8 {[%clk 0:02:16.3]} 16. Qd1 {[%clk 0:02:50.1]} 16... N7f6 {[%clk 0:01:59.1]}
17. Qe1 {[%clk 0:02:42.1]} 17... Nxc3 {[%clk 0:01:46.1]} 18. Bxc3 {[%clk
0:02:35.5]} 18... Nd5 {[%clk 0:01:44.9]} 19. Bd2 {[%clk 0:02:36.1]} 19... Bf6
{[%clk 0:01:36.9]} 20. Rc4 {[%clk 0:02:32]} 20... c5 {[%clk 0:01:29.1]} 21. Nh2
{[%clk 0:02:21.7]} 21... b5 {[%clk 0:01:24.9]} 22. Rcc1 {[%clk 0:02:19.6]} 22...
c4 {[%clk 0:01:16.6]} 23. dxc4 {[%clk 0:02:19.3]} 23... bxc4 {[%clk 0:01:16.4]}
24. Ng4 {[%clk 0:02:18.7]} 24... Be7 {[%clk 0:00:50]} 25. Bf3 {[%clk 0:02:08.2]}
25... Bg6 {[%clk 0:00:43.3]} 26. Ra1 {[%clk 0:02:05.2]} 26... Qb5 {[%clk
0:00:36.4]} 27. Ne5 {[%clk 0:01:46.3]} 27... Bh7 {[%clk 0:00:34.2]} 28. e4
{[%clk 0:01:43]} 28... Nb6 {[%clk 0:00:26.9]} 29. Bc3 {[%clk 0:01:36.5]} 29...
Na4 {[%clk 0:00:26.5]} 30. Ng4 {[%clk 0:00:56.6]} 30... Bc5 {[%clk 0:00:24.1]}
31. Be5 {[%clk 0:00:49.2]} 31... h5 {[%clk 0:00:20.9]} 32. Nh2 {[%clk
0:00:49.5]} 32... Bxf2+ {[%clk 0:00:20.6]} 33. Qxf2 {[%clk 0:00:50.4]} 33...
Qxe5 {[%clk 0:00:21]} 34. Rc2 {[%clk 0:00:48.3]} 34... c3 {[%clk 0:00:11.6]} 35.
bxc3 {[%clk 0:00:44.9]} 35... Rxc3 {[%clk 0:00:12.5]} 36. Rxc3 {[%clk
0:00:39.9]} 36... Nxc3 {[%clk 0:00:13.4]} 37. Rf1 {[%clk 0:00:40.5]} 37... Bg6
{[%clk 0:00:12.6]} 38. Re1 {[%clk 0:00:34]} 38... a5 {[%clk 0:00:11.6]} 39. Qb6
{[%clk 0:00:33.5]} 39... Qxg3+ {[%clk 0:00:11.3]} 40. Bg2 {[%clk 0:00:33.9]}
40... Qxe1+ {[%clk 0:00:11.2]} 41. Nf1 {[%clk 0:00:34.5]} 41... Ne2+ {[%clk
0:00:09.8]} 42. Kh2 {[%clk 0:00:34.7]} 42... Rf8 {[%clk 0:00:10]} 43. Qxa5
{[%clk 0:00:32.8]} 43... Qxa5 {[%clk 0:00:09.3]} 0-1

[Event "Early-Titled-Tuesday-Blitz-December-26-2023"]
[Site "Chess.com"]
[Date "2023.12.26"]
[Round "10"]
[White "tantaan"]
[Black "MrrRefrao"]
[Result "1-0"]
[WhiteElo "2490"]
[BlackElo "2540"]
[TimeControl "180+1"]
[EndTime "9:55:47 PST"]
[Termination "tantaan won on time"]

1. e4 {[%clk 0:03:00.9]} 1... c6 {[%clk 0:02:59.2]} 2. d4 {[%clk 0:03:00.1]}
2... d5 {[%clk 0:03:00.1]} 3. f3 {[%clk 0:02:57.1]} 3... e6 {[%clk 0:02:58.6]}
4. Nc3 {[%clk 0:02:54.7]} 4... Nf6 {[%clk 0:02:58.4]} 5. e5 {[%clk 0:02:38.7]}
5... Nfd7 {[%clk 0:02:57.7]} 6. f4 {[%clk 0:02:39.4]} 6... c5 {[%clk 0:02:57.8]}
7. Nf3 {[%clk 0:02:39.2]} 7... Nc6 {[%clk 0:02:56.5]} 8. Ne2 {[%clk 0:02:39.6]}
8... cxd4 {[%clk 0:02:12.3]} 9. Nexd4 {[%clk 0:02:39]} 9... Be7 {[%clk
0:01:42.9]} 10. c3 {[%clk 0:02:38.3]} 10... O-O {[%clk 0:01:42.5]} 11. Bd3
{[%clk 0:02:38.5]} 11... Nc5 {[%clk 0:01:42.6]} 12. Bc2 {[%clk 0:02:33.6]} 12...
f6 {[%clk 0:01:41.9]} 13. O-O {[%clk 0:02:32.2]} 13... Bd7 {[%clk 0:01:29.2]}
14. Qe2 {[%clk 0:02:23.7]} 14... Rc8 {[%clk 0:01:26.6]} 15. b4 {[%clk
0:02:16.8]} 15... Nxd4 {[%clk 0:01:21]} 16. Nxd4 {[%clk 0:02:15.6]} 16... Ne4
{[%clk 0:01:21.1]} 17. Bxe4 {[%clk 0:02:08.7]} 17... dxe4 {[%clk 0:01:22]} 18.
Qxe4 {[%clk 0:01:57.1]} 18... Rxc3 {[%clk 0:01:21.5]} 19. Bb2 {[%clk 0:01:53.5]}
19... Rc4 {[%clk 0:01:21.1]} 20. Qe2 {[%clk 0:01:45.2]} 20... Rxb4 {[%clk
0:01:01.9]} 21. a3 {[%clk 0:01:41.5]} 21... Rb6 {[%clk 0:00:47.6]} 22. Rad1
{[%clk 0:01:38.8]} 22... Qe8 {[%clk 0:00:37.3]} 23. Kh1 {[%clk 0:01:37.1]} 23...
fxe5 {[%clk 0:00:33.2]} 24. fxe5 {[%clk 0:01:35.5]} 24... Qg6 {[%clk 0:00:29.3]}
25. Bc3 {[%clk 0:01:31.5]} 25... Ra6 {[%clk 0:00:20.3]} 26. Rxf8+ {[%clk
0:01:22.9]} 26... Bxf8 {[%clk 0:00:20.2]} 27. Rf1 {[%clk 0:01:23.4]} 27... Bxa3
{[%clk 0:00:18.2]} 28. Qf3 {[%clk 0:01:20.3]} 28... Bc6 {[%clk 0:00:13]} 29.
Nxc6 {[%clk 0:01:19]} 29... Rxc6 {[%clk 0:00:13.9]} 30. Bd4 {[%clk 0:01:17.5]}
30... Be7 {[%clk 0:00:10.4]} 31. Bxa7 {[%clk 0:01:16.5]} 31... h6 {[%clk
0:00:11]} 32. Bb8 {[%clk 0:01:14]} 32... Rc2 {[%clk 0:00:09]} 33. Bd6 {[%clk
0:01:13.6]} 33... Bg5 {[%clk 0:00:07.4]} 34. Qxb7 {[%clk 0:01:08]} 34... Kh7
{[%clk 0:00:06.8]} 35. h3 {[%clk 0:01:04.5]} 35... Rc1 {[%clk 0:00:06.6]} 36.
Rxc1 {[%clk 0:00:59.8]} 36... Bxc1 {[%clk 0:00:07.5]} 37. Qf3 {[%clk 0:00:52.8]}
37... Qg5 {[%clk 0:00:04.3]} 38. Qf7 {[%clk 0:00:46.9]} 38... Bf4 {[%clk
0:00:01.8]} 39. Qxe6 {[%clk 0:00:44.4]} 39... h5 {[%clk 0:00:01.5]} 40. Qb3
{[%clk 0:00:36.6]} 1-0

[Event "Early-Titled-Tuesday-Blitz-December-26-2023"]
[Site "Chess.com"]
[Date "2023.12.26"]
[Round "10"]
[White "Hoshka"]
[Black "hsd2016"]
[Result "1-0"]
[WhiteElo "2058"]
[BlackElo "2237"]
[TimeControl "180+1"]
[EndTime "9:55:53 PST"]
[Termination "Hoshka won by resignation"]

1. d4 {[%clk 0:03:00.9]} 1... d5 {[%clk 0:03:00]} 2. c4 {[%clk 0:03:00.5]} 2...
c6 {[%clk 0:03:00.6]} 3. Nf3 {[%clk 0:02:59.8]} 3... Nf6 {[%clk 0:03:01.1]} 4.
Nc3 {[%clk 0:02:59.6]} 4... dxc4 {[%clk 0:03:01.7]} 5. a4 {[%clk 0:02:55.3]}
5... Bf5 {[%clk 0:03:01.7]} 6. e3 {[%clk 0:02:54.3]} 6... e6 {[%clk 0:03:01.7]}
7. Bxc4 {[%clk 0:02:53.9]} 7... Bb4 {[%clk 0:03:02.4]} 8. O-O {[%clk 0:02:52.7]}
8... O-O {[%clk 0:03:02.8]} 9. Qb3 {[%clk 0:02:49.5]} 9... a5 {[%clk 0:03:02.1]}
10. Na2 {[%clk 0:02:48.8]} 10... Be4 {[%clk 0:02:44.1]} 11. Nxb4 {[%clk
0:02:38.4]} 11... Bxf3 {[%clk 0:02:42.1]} 12. gxf3 {[%clk 0:02:35.4]} 12... axb4
{[%clk 0:02:42.3]} 13. Qxb4 {[%clk 0:02:31]} 13... Nd5 {[%clk 0:02:42]} 14. Qxb7
{[%clk 0:02:04.9]} 14... Nd7 {[%clk 0:02:27.1]} 15. f4 {[%clk 0:02:00.7]} 15...
N7f6 {[%clk 0:02:08.6]} 16. Be2 {[%clk 0:01:53.7]} 16... Ne4 {[%clk 0:01:53.7]}
17. Bf3 {[%clk 0:01:51.6]} 17... Nd6 {[%clk 0:01:42.7]} 18. Qxc6 {[%clk
0:01:38.7]} 18... Rc8 {[%clk 0:01:40]} 19. Qa6 {[%clk 0:01:38.3]} 19... Nb4
{[%clk 0:01:38.8]} 20. Qe2 {[%clk 0:01:36.5]} 20... Rc2 {[%clk 0:01:32.1]} 21.
Qd1 {[%clk 0:01:29.7]} 21... Qh4 {[%clk 0:00:09.5]} 22. Bd2 {[%clk 0:01:25.6]}
22... Rxb2 {[%clk 0:00:09.5]} 23. Bc3 {[%clk 0:01:23.8]} 23... Nc4 {[%clk
0:00:04.9]} 24. Bxb2 {[%clk 0:01:18.8]} 24... Nxb2 {[%clk 0:00:05.8]} 25. Qe2
{[%clk 0:01:14]} 25... N2d3 {[%clk 0:00:04.9]} 26. Rfd1 {[%clk 0:01:08.7]} 26...
g5 {[%clk 0:00:04.4]} 27. Rxd3 {[%clk 0:01:04.1]} 27... Nxd3 {[%clk 0:00:03.8]}
28. Qxd3 {[%clk 0:01:03.8]} 28... gxf4 {[%clk 0:00:04.7]} 29. e4 {[%clk
0:00:53.3]} 29... Kh8 {[%clk 0:00:04.6]} 30. Kf1 {[%clk 0:00:51.9]} 30... Qxh2
{[%clk 0:00:03.4]} 31. Ke2 {[%clk 0:00:51.5]} 31... Rb8 {[%clk 0:00:03.5]} 32.
Qd2 {[%clk 0:00:42.7]} 32... Qh6 {[%clk 0:00:02.5]} 33. a5 {[%clk 0:00:41.2]}
33... e5 {[%clk 0:00:01.9]} 34. a6 {[%clk 0:00:36.4]} 34... exd4 {[%clk
0:00:01.7]} 35. a7 {[%clk 0:00:35.8]} 35... Ra8 {[%clk 0:00:02.1]} 36. Qxd4+
{[%clk 0:00:35.1]} 36... f6 {[%clk 0:00:02.5]} 37. e5 {[%clk 0:00:32.7]} 1-0

[Event "Early-Titled-Tuesday-Blitz-December-26-2023"]
[Site "Chess.com"]
[Date "2023.12.26"]
[Round "10"]
[White "severomorskij"]
[Black "Magila31"]
[Result "1-0"]
[WhiteElo "2874"]
[BlackElo "2396"]
[TimeControl "180+1"]
[EndTime "9:55:56 PST"]
[Termination "severomorskij won by resignation"]

1. d4 {[%clk 0:03:00.9]} 1... Nf6 {[%clk 0:02:59]} 2. c4 {[%clk 0:03:01]} 2...
g6 {[%clk 0:02:58.6]} 3. Nc3 {[%clk 0:03:01.3]} 3... Bg7 {[%clk 0:02:58.7]} 4.
Nf3 {[%clk 0:03:00.1]} 4... O-O {[%clk 0:02:58.4]} 5. Bg5 {[%clk 0:03:00.3]}
5... d6 {[%clk 0:02:57.5]} 6. e3 {[%clk 0:03:00]} 6... c5 {[%clk 0:02:53.3]} 7.
d5 {[%clk 0:02:59.1]} 7... b5 {[%clk 0:02:50.8]} 8. cxb5 {[%clk 0:02:56.1]} 8...
a6 {[%clk 0:02:45.9]} 9. a4 {[%clk 0:02:56.2]} 9... Qa5 {[%clk 0:02:44.7]} 10.
Nd2 {[%clk 0:02:55]} 10... Qb4 {[%clk 0:02:34.3]} 11. Ra3 {[%clk 0:02:50.6]}
11... axb5 {[%clk 0:02:18.8]} 12. Bxb5 {[%clk 0:02:40.5]} 12... Ba6 {[%clk
0:02:13.5]} 13. Rb3 {[%clk 0:02:37.1]} 13... Qa5 {[%clk 0:02:13.2]} 14. Nc4
{[%clk 0:02:36]} 14... Qc7 {[%clk 0:02:11.6]} 15. O-O {[%clk 0:02:35.8]} 15...
Nbd7 {[%clk 0:02:09.9]} 16. Bxd7 {[%clk 0:02:33.1]} 16... Bxc4 {[%clk
0:02:04.3]} 17. Bb5 {[%clk 0:02:29.2]} 17... Bxf1 {[%clk 0:01:49]} 18. Qxf1
{[%clk 0:02:24.1]} 18... h6 {[%clk 0:01:44.6]} 19. Bh4 {[%clk 0:02:21.2]} 19...
g5 {[%clk 0:01:44.4]} 20. Bg3 {[%clk 0:02:21.4]} 20... Nh5 {[%clk 0:01:44.7]}
21. Qe2 {[%clk 0:02:15.4]} 21... Nxg3 {[%clk 0:01:44]} 22. hxg3 {[%clk
0:02:16.3]} 22... Rfb8 {[%clk 0:01:42.4]} 23. Qc4 {[%clk 0:02:05]} 23... Qc8
{[%clk 0:01:34.8]} 24. g4 {[%clk 0:02:01.4]} 24... Ra7 {[%clk 0:01:23]} 25. g3
{[%clk 0:01:58.4]} 25... e6 {[%clk 0:01:21.9]} 26. Qe4 {[%clk 0:01:38.5]} 26...
Bxc3 {[%clk 0:01:20.2]} 27. Rxc3 {[%clk 0:01:27.2]} 27... exd5 {[%clk
0:01:20.4]} 28. Qxd5 {[%clk 0:01:26.8]} 28... Qe6 {[%clk 0:01:12.3]} 29. Rd3
{[%clk 0:01:17.2]} 29... Rb6 {[%clk 0:01:05.2]} 30. Qf3 {[%clk 0:01:05.1]} 30...
Rb8 {[%clk 0:00:45.9]} 31. b3 {[%clk 0:00:59.8]} 31... Rd8 {[%clk 0:00:41.6]}
32. Bc4 {[%clk 0:00:54.5]} 32... Qe5 {[%clk 0:00:42]} 33. Rd5 {[%clk 0:00:53.2]}
33... Qg7 {[%clk 0:00:33.2]} 34. Kg2 {[%clk 0:00:50.7]} 34... Re7 {[%clk
0:00:28.4]} 35. a5 {[%clk 0:00:49.6]} 35... Re5 {[%clk 0:00:26.6]} 36. a6 {[%clk
0:00:45.8]} 36... Rd7 {[%clk 0:00:26.7]} 37. Bb5 {[%clk 0:00:27]} 37... Rd8
{[%clk 0:00:14.2]} 38. a7 {[%clk 0:00:26.1]} 38... Qf8 {[%clk 0:00:11]} 39. Bc6
{[%clk 0:00:24.6]} 39... Ra8 {[%clk 0:00:08.8]} 40. Rxe5 {[%clk 0:00:21.9]}
40... Rxa7 {[%clk 0:00:07.7]} 41. Re8 {[%clk 0:00:21.8]} 1-0